bitfinex-derivatives/quotes_SOLF0:USTF0_20250110
["timestamp","ask_amount","ask_price","bid_price","bid_amount"]
[1736505367412,9.29767757,192.27,192.22,2.6011]
[1736505368119,9.29767757,192.27,192.23,2.6011]
[1736505368315,2.6007,192.27,192.21,6.69697757]
[1736505368906,2.6007,192.27,192.23,6.69697757]
[1736505369112,2.6005,192.28,192.24,2.6009]
[1736505369515,1.6404,192.29,192.25,6.69697757]
[1736505369717,7.0403,192.3,192.26,2.6006]
[1736505371417,2.6003,192.29,192.26,2.6006]
[1736505376514,4.44,192.3,192.24,6.69697757]
[1736505376716,2.6006,192.28,192.24,9.29797757]
[1736505377419,6.69697757,192.29,192.23,2.6011]
[1736505378020,2.6007,192.27,192.23,2.6011]
[1736505380722,6.69697757,192.29,192.23,2.6011]
[1736505381526,2.6007,192.27,192.23,2.6011]
[1736505382729,2.6007,192.26,192.23,2.6011]
[1736505383131,2.6007,192.26,192.22,2.6012]
[1736505383328,6.69697757,192.27,192.2,35.49275155]
[1736505383523,6.69697757,192.23,192.2,28.79577398]
[1736505383730,6.69697757,192.21,192.19,28.79577398]
[1736505384032,6.69697757,192.25,192.19,35.49275155]
[1736505384225,6.69697757,192.26,192.21,2.6014]
[1736505384427,2.601,192.25,192.21,2.6014]
[1736505384629,6.69697757,192.26,192.21,6.69697757]
[1736505384832,6.69697757,192.28,192.23,2.601]
[1736505385130,2.6008,192.26,192.23,2.601]
[1736505390032,9.29777757,192.26,192.22,2.6012]
[1736505393135,6.69697757,192.26,192.22,2.6012]
[1736505393433,2.6009,192.25,192.22,2.6012]
[1736505394736,2.6011,192.24,192.21,2.6014]
[1736505394937,2.6011,192.24,192.19,6.69697757]
[1736505395236,6.69697757,192.24,192.18,28.79577398]
[1736505395739,2.6012,192.23,192.19,2.6016]
[1736505395931,6.69697757,192.24,192.16,7.19894349]
[1736505396134,6.69697757,192.24,192.16,13.89592106]
[1736505396327,2.6014,192.21,192.18,2.6018]
[1736505398140,9.29827757,192.22,192.18,2.6018]
[1736505399438,2.6014,192.21,192.18,2.6018]
[1736505400738,6.69697757,192.22,192.18,2.6018]
[1736505400939,9.29827757,192.22,192.18,2.6018]
[1736505404944,9.29827757,192.22,192.16,6.69697757]
[1736505405542,9.29827757,192.22,192.18,2.6017]
[1736505409044,9.29827757,192.22,192.19,2.6016]
[1736505409741,4.7366,192.29,192.18,6.69697757]
[1736505409942,4.44,192.28,192.18,6.69697757]
[1736505410246,6.69697757,192.25,192.18,6.69697757]
[1736505411247,6.69697757,192.25,192.22,2.6011]
[1736505411446,6.69697757,192.23,192.17,7.19894349]
[1736505411744,6.69697757,192.23,192.17,13.89592106]
[1736505411943,9.29817757,192.23,192.2,2.6015]
[1736505412540,6.69697757,192.23,192.2,2.6015]
[1736505413341,6.69697757,192.23,192.18,2.6017]
[1736505414040,2.6013,192.22,192.18,2.6017]
[1736505414746,2.6013,192.22,192.19,2.6016]
[1736505417347,6.69697757,192.21,192.17,7.19894349]
[1736505417536,6.69697757,192.18,192.17,4.73164349]
[1736505417847,2.6019,192.17,192.16,21.59683049]
[1736505418245,6.69697757,192.18,192.11,2.6027]
[1736505418549,6.69697757,192.14,192.11,2.6027]
[1736505419344,2.6022,192.15,192.11,2.6027]
[1736505419847,3.0881,192.2,192.11,6.69697757]
[1736505420042,6.69697757,192.19,192.11,6.69697757]
[1736505420442,6.69697757,192.17,192.06,21.59683049]
[1736505420649,6.69697757,192.13,192.06,28.29380806]
[1736505420947,6.69697757,192.11,192.06,21.59683049]
[1736505421147,6.69697757,192.11,192.07,2.6033]
[1736505421348,6.69697757,192.11,192.06,21.59683049]
[1736505421745,6.69697757,192.11,192.07,2.6033]
[1736505421946,6.69697757,192.11,192.04,21.59683049]
[1736505422141,6.69697757,192.09,192.04,21.59683049]
[1736505422347,6.69697757,192.09,192.04,24.20053049]
[1736505422650,6.69697757,192.07,192.04,21.59683049]
[1736505422847,6.69697757,192.07,192.03,2.6038]
[1736505423550,9.30007757,192.09,192.01,48.30653674]
[1736505423750,6.69697757,192.09,192.03,6.69697757]
[1736505424147,6.69697757,192.09,192.05,2.6035]
[1736505425251,9.29997757,192.09,192.05,2.6035]
[1736505425754,6.69697757,192.1,192.06,2.6034]
[1736505425941,6.69697757,192.1,192.03,6.69697757]
[1736505426146,6.69697757,192.1,192.05,2.6036]
[1736505426348,6.69697757,192.1,192.03,6.69697757]
[1736505426745,6.69697757,192.06,192.02,2.6039]
[1736505427248,2.6029,192.11,192.04,2.6036]
[1736505427445,6.69697757,192.09,192.01,6.69697757]
[1736505429061,2.6027,192.12,192.03,6.69697757]
[1736505429253,6.69697757,192.11,192.05,6.69697757]
[1736505429447,6.69697757,192.11,192.07,2.6032]
[1736505429647,6.69697757,192.11,192.05,6.69697757]
[1736505430342,6.69697757,192.11,192.07,2.6032]
[1736505433355,15.65,192.24,192.05,6.69697757]
[1736505433554,6.69697757,192.14,192.11,2.6026]
[1736505434052,6.69697757,192.12,192.08,2.6031]
[1736505434649,6.69697757,192.12,192.09,2.603]
[1736505438856,6.69697757,192.12,192.05,6.69697757]
[1736505439060,6.69697757,192.12,192.1,2.6029]
[1736505439356,9.29937757,192.14,192.1,2.6029]
[1736505447964,2.6023,192.15,192.11,2.6026]
[1736505448156,9.05593598,192.2,192.09,6.69697757]
[1736505448359,6.69697757,192.17,192.09,6.69697757]
[1736505448766,9.29907757,192.17,192.13,2.6025]
[1736505449472,2.6021,192.17,192.13,2.6025]
[1736505449671,9.29907757,192.17,192.13,2.6025]
[1736505450070,9.29907757,192.17,192.09,6.69697757]
[1736505450368,6.69697757,192.17,192.11,6.69697757]
[1736505452070,6.69697757,192.17,192.14,2.6023]
[1736505452774,2.6019,192.18,192.15,2.6022]
[1736505453076,9.29887757,192.18,192.15,2.6022]
[1736505453472,6.69697757,192.18,192.15,2.6022]
[1736505453669,6.69697757,192.18,192.11,6.69697757]
[1736505453980,6.69697757,192.2,192.15,6.69697757]
[1736505455072,2.6014,192.22,192.15,6.69697757]
[1736505455378,6.69697757,192.21,192.1,3.1821]
[1736505455580,9.29867757,192.19,192.11,41.63586292]
[1736505455777,6.69697757,192.17,192.11,48.33284049]
[1736505456477,6.69697757,192.17,192.11,6.69697757]
[1736505456676,6.69697757,192.14,192.1,21.59683049]
[1736505457077,6.69697757,192.14,192.11,2.6026]
[1736505457272,6.69697757,192.14,192.1,21.59683049]
[1736505457482,6.69697757,192.14,192.08,21.59683049]
[1736505458079,13.50477369,192.25,192.09,6.69697757]
[1736505458278,0.81042154,192.24,192.09,6.69697757]
[1736505458480,6.69697757,192.15,192.09,6.69697757]
[1736505459082,6.69697757,192.15,192.12,2.6026]
[1736505459886,2.6018,192.18,192.14,2.6022]
[1736505460082,6.69697757,192.17,192.11,6.69697757]
[1736505460886,6.69697757,192.17,192.15,2.6022]
[1736505461683,6.69697757,192.17,192.12,2.6025]
[1736505461684,2.6021,192.16,192.12,2.6025]
[1736505461891,6.69697757,192.15,192.12,2.6025]
[1736505462083,6.69697757,192.15,192.09,41.6275631]
[1736505462278,6.69697757,192.15,192.1,2.6028]
[1736505462480,6.69697757,192.15,192.09,21.59683049]
[1736505462885,6.69697757,192.15,192.08,28.29380806]
[1736505463191,9.29917757,192.15,192.11,2.6027]
[1736505463689,4.6072,192.2,192.12,2.6026]
[1736505463890,6.69697757,192.15,192.12,2.6026]
[1736505465987,6.69697757,192.15,192.08,28.29380806]
[1736505466191,6.69697757,192.15,192.13,2.6025]
[1736505466587,6.69697757,192.15,192.08,28.29380806]
[1736505467188,9.29917757,192.15,192.11,2.6026]
[1736505467388,9.29917757,192.15,192.08,28.29380806]
[1736505467786,9.29917757,192.15,192.09,5.01258287]
[1736505468192,9.29917757,192.15,192.12,2.6026]
[1736505468387,6.69697757,192.15,192.12,2.6026]
[1736505468588,2.6021,192.16,192.12,2.6026]
[1736505468789,6.69697757,192.15,192.12,2.6026]
[1736505470091,6.69697757,192.15,192.08,28.29380806]
[1736505470297,6.69697757,192.15,192.13,2.6025]
[1736505474195,4.6072,192.2,192.08,28.29380806]
[1736505474394,6.69697757,192.17,192.15,2.6022]
[1736505476398,6.69697757,192.17,192.1,21.59683049]
[1736505476597,6.69697757,192.17,192.14,2.6023]
[1736505480800,9.29887757,192.17,192.14,2.6023]
[1736505482295,2.6022,192.16,192.12,2.6026]
[1736505482601,6.69697757,192.15,192.12,2.6026]
[1736505484302,9.29927757,192.15,192.12,2.6026]
[1736505484799,2.6023,192.15,192.12,2.6026]
[1736505484998,9.29927757,192.15,192.12,2.6026]
[1736505485505,9.29917757,192.15,192.12,2.6026]
[1736505489708,2.6022,192.15,192.12,2.6026]
[1736505489906,4.6072,192.2,192.1,6.69697757]
[1736505490096,6.69697757,192.18,192.1,6.69697757]
[1736505490296,9.29887757,192.18,192.14,2.6023]
[1736505491197,2.602,192.17,192.14,2.6023]
[1736505491395,6.69697757,192.16,192.12,7.24716531]
[1736505491604,6.69697757,192.14,192.12,7.24716531]
[1736505492508,6.69697757,192.14,192.09,7.24716531]
[1736505492911,9.29937757,192.14,192.1,2.6029]
[1736505494904,9.29937757,192.14,192.11,2.6027]
[1736505495306,6.69697757,192.14,192.11,2.6027]
[1736505497207,9.29937757,192.14,192.11,2.6027]
[1736505498505,2.6024,192.14,192.11,2.6027]
[1736505499411,9.29937757,192.14,192.11,2.6027]
[1736505500907,6.69697757,192.14,192.11,2.6027]
[1736505507515,6.69697757,192.12,192.09,2.6029]
[1736505507710,6.69697757,192.12,192.08,28.8439958]
[1736505508111,6.69697757,192.12,192.08,31.4471958]
[1736505508610,9.29967757,192.12,192.08,31.4471958]
[1736505509013,9.29967757,192.12,192.08,2.6032]
[1736505509616,6.69697757,192.1,192.06,7.24716531]
[1736505509815,6.69697757,192.08,192.06,7.24716531]
[1736505510015,2.6034,192.07,192.05,28.8439958]
[1736505510219,6.69697757,192.06,192.05,28.8439958]
[1736505510619,9.30037757,192.06,192.05,28.8439958]
[1736505511121,9.30037757,192.06,192.02,2.6039]
[1736505511522,9.30037757,192.06,192.0,28.8439958]
[1736505511715,6.69697757,192.06,192.0,28.8439958]
[1736505512122,6.69697757,192.06,191.98,35.54097337]
[1736505512822,6.69697757,192.06,191.98,13.94414288]
[1736505513814,6.69697757,192.06,191.98,6.69697757]
[1736505514222,6.69697757,192.06,192.02,2.6039]
[1736505514921,6.69697757,192.06,192.03,2.6038]
[1736505522617,9.30037757,192.06,192.03,2.6038]
[1736505524529,6.69697757,192.06,192.03,2.6038]
[1736505528341,6.69697757,192.06,191.99,6.69697757]
[1736505529040,6.69697757,192.06,192.03,2.6037]
[1736505530133,2.6033,192.07,192.03,2.6037]
[1736505530337,2.6031,192.09,192.01,6.69697757]
[1736505530537,6.69697757,192.09,192.01,6.69697757]
[1736505530939,6.69697757,192.09,192.06,2.6033]
[1736505532938,9.29997757,192.09,192.01,6.69697757]
[1736505533245,9.29997757,192.09,192.05,2.6035]
[1736505533447,2.6032,192.08,192.05,2.6035]
[1736505533846,6.69697757,192.07,192.05,2.6035]
[1736505538454,9.30007757,192.09,192.06,2.6034]
[1736505538751,6.69697757,192.09,192.01,6.69697757]
[1736505538951,6.69697757,192.09,192.07,2.6032]
[1736505539353,6.69697757,192.09,192.03,6.69697757]
[1736505540847,6.69697757,192.09,192.07,2.6032]
[1736505541851,2.6029,192.11,192.07,2.6032]
[1736505542053,6.69697757,192.09,192.07,2.6032]
[1736505542853,6.69697757,192.09,192.06,2.6034]
[1736505544353,6.69697757,192.07,192.04,2.6036]
[1736505545156,6.69697757,192.07,192.05,2.6035]
[1736505556865,6.69697757,192.07,192.06,2.6034]
[1736505565067,6.69697757,192.07,192.03,7.24716531]
[1736505565274,6.69697757,192.07,192.05,2.6035]
[1736505567974,6.69697757,192.07,192.03,7.24716531]
[1736505568175,6.69697757,192.07,192.06,2.6034]
[1736505568566,1.515,192.12,192.03,13.94414288]
[1736505568778,6.69697757,192.1,192.08,2.6032]
[1736505570376,6.69697757,192.1,192.07,2.6033]
[1736505571177,6.69697757,192.08,192.07,2.6033]
[1736505572577,6.69697757,192.08,192.04,7.24716531]
[1736505572879,6.69697757,192.06,192.04,7.24716531]
[1736505573780,6.69697757,192.06,192.01,28.8439958]
[1736505574180,9.30047757,192.06,192.03,2.6038]
[1736505581983,6.69697757,192.04,192.03,2.6038]
[1736505587385,6.69697757,192.04,192.02,2.6039]
[1736505591986,2.6036,192.05,192.02,2.6039]
[1736505592187,6.69697757,192.04,192.02,2.6039]
[1736505592486,2.6035,192.06,192.02,2.6039]
[1736505592685,6.69697757,192.04,192.02,2.6039]
[1736505598685,6.69697757,192.04,192.01,2.6041]
[1736505598987,6.69697757,192.04,192.0,7.24716531]
[1736505600089,6.69697757,192.04,192.02,2.6039]
[1736505601190,9.30077757,192.04,192.01,2.6041]
[1736505601392,9.30077757,192.04,192.0,7.24716531]
[1736505602285,9.30077757,192.04,192.0,9.85136531]
[1736505602484,6.69697757,192.02,192.0,9.85136531]
[1736505602690,6.69697757,192.02,191.98,28.8439958]
[1736505602995,6.69697757,192.0,191.98,28.8439958]
[1736505603197,2.6044,191.99,191.98,28.8439958]
[1736505603690,2.6045,191.98,191.95,7.24716531]
[1736505603890,9.30147757,191.98,191.95,7.24716531]
[1736505604890,9.30147757,191.98,191.95,2.6049]
[1736505607594,9.30147757,191.98,191.94,2.6051]
[1736505607794,6.69697757,191.96,191.94,2.6051]
[1736505608595,2.6044,191.99,191.95,2.6049]
[1736505608796,9.30137757,191.99,191.93,3.5190607]
[1736505608991,1.5338,192.06,191.93,3.5190607]
[1736505609189,6.69697757,192.0,191.93,3.5190607]
[1736505609392,6.69697757,192.0,191.97,2.6045]
[1736505611992,9.30127757,192.0,191.97,2.6045]
[1736505615491,6.69697757,192.0,191.94,6.69697757]
[1736505615697,1.5338,192.06,191.96,6.69697757]
[1736505615999,9.30067757,192.04,191.98,6.69697757]
[1736505616395,9.30067757,192.04,191.99,2.6043]
[1736505616593,9.30067757,192.04,191.98,6.69697757]
[1736505616594,2.6037,192.04,191.98,6.69697757]
[1736505616797,6.69697757,192.05,191.98,6.69697757]
[1736505617092,6.69697757,192.07,192.0,6.69697757]
[1736505617595,6.69697757,192.07,192.03,2.6038]
[1736505617794,6.69697757,192.07,192.02,6.69697757]
[1736505617795,7.5713,192.11,192.02,6.69697757]
[1736505617995,6.69697757,192.09,192.02,6.69697757]
[1736505619200,9.29997757,192.09,192.04,2.6036]
[1736505619402,2.603,192.09,192.02,6.69697757]
[1736505619700,6.69697757,192.09,192.02,6.69697757]
[1736505620696,6.69697757,192.09,192.04,6.69697757]
[1736505621300,6.69697757,192.09,192.05,2.6035]
[1736505621500,6.69697757,192.09,192.04,6.69697757]
[1736505622300,6.69697757,192.09,192.06,2.6034]
[1736505629305,6.69697757,192.11,192.04,6.69697757]
[1736505629600,6.69697757,192.13,192.06,6.69697757]
[1736505630795,9.29947757,192.13,192.08,2.6031]
[1736505631200,9.29947757,192.13,192.06,6.69697757]
[1736505632199,9.29947757,192.13,192.09,2.603]
[1736505632797,9.29947757,192.13,192.06,6.69697757]
[1736505632998,9.06477369,192.18,192.08,6.69697757]
[1736505633203,6.69697757,192.16,192.1,6.69697757]
[1736505633401,6.69697757,192.16,192.13,2.6024]
[1736505635303,6.69697757,192.14,192.13,2.6024]
[1736505641011,6.69697757,192.14,192.12,2.6026]
[1736505641308,6.69697757,192.14,192.07,6.69697757]
[1736505641710,6.69697757,192.12,192.04,7.24716531]
[1736505641904,6.69697757,192.1,192.04,6.69697757]
[1736505642100,6.69697757,192.1,192.06,2.6033]
[1736505642304,4.44,192.21,192.08,6.69697757]
[1736505642507,6.69697757,192.16,192.08,6.69697757]
[1736505642705,9.29917757,192.16,192.08,6.69697757]
[1736505643005,6.69697757,192.12,192.06,6.69697757]
[1736505643812,6.69697757,192.12,192.1,2.6028]
[1736505644610,6.69697757,192.12,192.11,2.6028]
[1736505645098,6.69697757,192.14,192.06,6.69697757]
[1736505645304,6.69697757,192.14,192.08,6.69697757]
[1736505646111,6.69697757,192.14,192.13,2.6025]
[1736505652610,6.69697757,192.14,192.06,48.8579407]
[1736505652812,6.69697757,192.12,192.06,48.8579407]
[1736505653015,6.69697757,192.12,192.06,35.54097337]
[1736505653317,6.69697757,192.12,192.07,2.6032]
[1736505653619,6.69697757,192.12,192.06,35.54097337]
[1736505653919,6.69697757,192.12,192.1,2.6028]
[1736505658217,6.69697757,192.12,192.05,28.8439958]
[1736505658423,6.69697757,192.12,192.09,2.603]
[1736505660826,2.6024,192.14,192.1,2.6029]
[1736505661025,6.69697757,192.12,192.1,2.6029]
[1736505662219,6.69697757,192.12,192.09,2.603]
[1736505663526,6.69697757,192.12,192.05,35.54097337]
[1736505663727,6.69697757,192.12,192.1,2.6029]
[1736505667627,9.29967757,192.12,192.07,2.6032]
[1736505667828,6.69697757,192.12,192.07,7.24716531]
[1736505668032,6.69697757,192.1,192.07,7.24716531]
[1736505668830,6.69697757,192.1,192.07,2.6033]
[1736505672931,6.69697757,192.1,192.08,2.6032]
[1736505674031,6.69697757,192.1,192.07,2.6033]
[1736505676234,6.69697757,192.1,192.04,28.8439958]
[1736505676434,6.69697757,192.1,192.08,2.6031]
[1736505681530,9.29997757,192.1,192.04,28.8439958]
[1736505681737,6.69697757,192.07,192.04,28.8439958]
[1736505682238,6.69697757,192.05,192.04,28.8439958]
[1736505682628,6.69697757,192.05,192.02,2.6039]
[1736505682831,6.69697757,192.05,192.01,7.24716531]
[1736505683638,6.69697757,192.05,192.0,7.24716531]
[1736505684137,6.69697757,192.05,192.03,2.6038]
[1736505693444,9.30057757,192.05,191.97,28.8439958]
[1736505693645,6.69697757,192.03,191.97,28.8439958]
[1736505694045,6.69697757,192.03,192.01,2.604]
[1736505695845,2.6036,192.05,192.02,2.604]
[1736505696042,6.69697757,192.04,192.02,2.604]
[1736505703349,2.6035,192.06,192.03,2.6038]
[1736505703648,6.69697757,192.05,192.03,2.6038]
[1736505710852,6.69697757,192.05,191.99,7.24716531]
[1736505711854,6.69697757,192.05,192.04,2.6037]
[1736505721953,2.6031,192.09,192.04,2.6037]
[1736505722159,2.6032,192.08,192.05,2.6035]
[1736505722359,6.69697757,192.06,192.05,2.6035]
[1736505724255,13.75444088,192.13,192.01,28.8439958]
[1736505724462,6.69697757,192.09,192.02,6.69697757]
[1736505724660,18.19444088,192.13,192.02,6.69697757]
[1736505724661,6.69697757,192.11,192.04,6.69697757]
[1736505724863,6.69697757,192.11,192.06,2.6034]
[1736505725065,6.69697757,192.11,192.04,6.69697757]
[1736505725752,6.69697757,192.11,192.04,35.54097337]
[1736505726057,6.69697757,192.11,192.09,2.603]
[1736505735568,16.01905379,192.14,192.11,2.6027]
[1736505735763,6.69697757,192.12,192.11,2.6027]
[1736505737863,6.69697757,192.12,192.04,28.8439958]
[1736505738065,6.69697757,192.1,192.04,28.8439958]
[1736505738561,6.69697757,192.1,192.05,5.01435494]
[1736505738765,6.69697757,192.1,192.09,2.603]
[1736505742361,6.69697757,192.1,192.04,28.8439958]
[1736505742768,9.29987757,192.1,192.07,2.6032]
[1736505743167,6.69697757,192.1,192.07,2.6032]
[1736505743774,6.69697757,192.1,192.08,2.6031]
[1736505749586,2.6028,192.11,192.08,2.6031]
[1736505749789,6.69697757,192.1,192.08,2.6031]
[1736505751787,6.69697757,192.1,192.09,2.603]
[1736505754592,12.16224088,192.15,192.07,6.69697757]
[1736505754593,15.75361845,192.15,192.07,6.69697757]
[1736505754793,6.69697757,192.15,192.07,6.69697757]
[1736505755192,6.69697757,192.15,192.08,3.2727]
[1736505755592,6.69697757,192.15,192.13,2.6024]
[1736505759795,6.69697757,192.14,192.13,2.6024]
[1736505760898,2.6017,192.19,192.11,6.69697757]
[1736505761099,6.69697757,192.19,192.11,6.69697757]
[1736505761896,2.6015,192.2,192.17,2.6018]
[1736505762100,6.69697757,192.18,192.17,2.6018]
[1736505762495,2.6015,192.2,192.17,2.6018]
[1736505762801,6.69697757,192.19,192.17,2.6018]
[1736505763199,2.6014,192.21,192.17,2.6018]
[1736505763395,6.69697757,192.2,192.13,6.69697757]
[1736505763792,6.69697757,192.21,192.13,6.69697757]
[1736505764296,6.69697757,192.21,192.17,2.6018]
[1736505765398,9.29837757,192.21,192.17,2.6018]
[1736505767100,2.602,192.17,192.13,2.6024]
[1736505767293,6.69697757,192.16,192.13,2.6024]
[1736505768099,2.602,192.17,192.1,48.85745023]
[1736505768100,6.69697757,192.14,192.1,48.85745023]
[1736505768410,6.69697757,192.11,192.08,48.85745023]
[1736505768595,7.37955837,192.2,192.08,48.85745023]
[1736505768806,6.69697757,192.1,192.08,48.85745023]
[1736505769408,6.69697757,192.1,192.03,7.24716531]
[1736505769604,6.69697757,192.1,192.07,2.6033]
[1736505770507,6.69697757,192.1,192.08,2.6031]
[1736505773212,6.69697757,192.1,192.07,2.6033]
[1736505776208,9.29977757,192.11,192.07,2.6033]
[1736505776611,9.29977757,192.11,192.08,2.6031]
[1736505782117,3.0954,192.18,192.08,6.69697757]
[1736505782420,6.69697757,192.15,192.08,6.69697757]
[1736505782812,6.69697757,192.15,192.12,2.6025]
[1736505783012,6.69697757,192.15,192.08,6.69697757]
[1736505783411,6.69697757,192.15,192.13,2.6024]
[1736505786219,6.69697757,192.15,192.08,6.69697757]
[1736505787423,9.29917757,192.15,192.11,2.6027]
[1736505788325,6.69697757,192.15,192.11,2.6027]
[1736505788525,2.6024,192.14,192.11,2.6027]
[1736505790325,6.69697757,192.15,192.12,2.6026]
[1736505791625,9.29917757,192.15,192.12,2.6026]
[1736505794624,6.69697757,192.14,192.12,2.6026]
[1736505796231,6.69697757,192.14,192.11,2.6027]
[1736505798930,6.69697757,192.14,192.12,2.6026]
[1736505805137,2.6026,192.13,192.09,2.603]
[1736505805343,6.69697757,192.11,192.09,2.603]
[1736505806045,6.69697757,192.11,192.1,2.6029]
[1736505809448,6.69697757,192.13,192.1,2.6029]
[1736505810942,2.6022,192.15,192.12,2.6026]
[1736505811146,3.0954,192.18,192.09,6.69697757]
[1736505811342,1.4984,192.19,192.11,6.69697757]
[1736505811544,6.69697757,192.18,192.11,6.69697757]
[1736505812149,6.69697757,192.18,192.09,28.8439958]
[1736505812344,6.69697757,192.18,192.11,6.69697757]
[1736505812548,9.29877757,192.18,192.14,2.6023]
[1736505813650,6.69697757,192.16,192.13,2.6025]
[1736505814352,6.69697757,192.14,192.1,7.24716531]
[1736505814855,9.29937757,192.14,192.1,2.6028]
[1736505815052,9.29937757,192.14,192.08,28.8439958]
[1736505815754,2.6022,192.15,192.11,2.6027]
[1736505815947,9.29917757,192.15,192.11,2.6027]
[1736505818555,6.69697757,192.13,192.11,2.6027]
[1736505820255,6.69697757,192.14,192.11,2.6027]
[1736505822256,9.29937757,192.14,192.11,2.6027]
[1736505823755,6.69697757,192.14,192.11,2.6027]
[1736505824153,1.5209,192.17,192.07,7.24716531]
[1736505824154,6.69697757,192.16,192.08,6.69697757]
[1736505824357,6.69697757,192.17,192.08,6.69697757]
[1736505824559,6.69697757,192.17,192.1,6.69697757]
[1736505825352,6.69697757,192.17,192.14,2.6023]
[1736505826159,2.6018,192.18,192.1,13.94414288]
[1736505826457,9.29877757,192.18,192.15,2.6022]
[1736505829754,9.29877757,192.18,192.14,2.6023]
[1736505831752,9.29877757,192.18,192.1,13.94414288]
[1736505831959,9.29877757,192.18,192.15,2.6022]
[1736505839571,6.69697757,192.18,192.1,13.94414288]
[1736505839765,6.69697757,192.2,192.12,6.69697757]
[1736505840670,9.29857757,192.2,192.16,2.602]
[1736505840967,6.69697757,192.18,192.1,35.54097337]
[1736505841172,6.69697757,192.18,192.1,28.8439958]
[1736505841466,6.69697757,192.16,192.1,28.8439958]
[1736505841661,6.69697757,192.14,192.1,28.8439958]
[1736505841863,6.69697757,192.12,192.1,28.8439958]
[1736505842069,6.69697757,192.12,192.1,7.24716531]
[1736505843364,6.69697757,192.12,192.09,2.603]
[1736505845771,9.29967757,192.12,192.08,2.6032]
[1736505846173,6.69697757,192.1,192.05,28.8439958]
[1736505846873,6.69697757,192.1,192.05,7.24716531]
[1736505847067,6.69697757,192.1,192.07,2.6033]
[1736505849673,2.6029,192.11,192.05,6.69697757]
[1736505849876,2.6029,192.11,192.08,2.6031]
[1736505859483,9.29987757,192.11,192.08,2.6031]
[1736505860384,6.69697757,192.09,192.03,11.98486531]
[1736505860584,6.69697757,192.07,192.03,7.24716531]
[1736505861087,6.69697757,192.07,192.01,28.8439958]
[1736505861776,9.30027757,192.07,192.04,2.6036]
[1736505863089,2.6032,192.08,192.02,6.69697757]
[1736505863286,9.30017757,192.08,192.05,2.6035]
[1736505864091,6.69697757,192.06,192.05,2.6035]
[1736505864290,6.69697757,192.06,192.04,2.6037]
[1736505874804,9.30057757,192.06,192.02,2.6039]
[1736505875104,6.69697757,192.04,192.02,2.6039]
[1736505878607,4.44,192.08,191.98,40.26187337]
[1736505878812,6.69697757,192.07,192.0,6.69697757]
[1736505879311,6.69697757,192.07,192.04,2.6036]
[1736505881212,7.0432,192.08,192.04,2.6036]
[1736505881515,6.69697757,192.06,192.04,2.6036]
[1736505892717,6.69697757,192.06,192.0,7.24716531]
[1736505892916,9.30047757,192.06,192.03,2.6038]
[1736505896219,1.624,192.13,192.01,7.24716531]
[1736505896517,9.29997757,192.09,192.02,6.69697757]
[1736505897110,2.603,192.09,192.05,2.6035]
[1736505897314,9.29997757,192.09,192.02,18.96828786]
[1736505897713,9.29997757,192.09,192.02,40.56511835]
[1736505897919,2.6032,192.08,192.03,5.02414498]
[1736505898320,2.6032,192.08,192.05,2.6035]
[1736505899018,6.69697757,192.07,192.05,2.6035]
[1736505899721,6.69697757,192.07,192.02,7.24716531]
[1736505899914,4.44,192.12,192.02,7.24716531]
[1736505899915,6.69697757,192.05,192.02,7.24716531]
[1736505900615,6.69697757,192.05,192.02,9.85106531]
[1736505900821,6.69697757,192.05,192.02,2.6039]
[1736505901724,9.30057757,192.05,192.02,2.6039]
[1736505902525,9.30057757,192.05,192.0,28.8439958]
[1736505902526,6.69697757,192.03,192.0,28.8439958]
[1736505902722,6.69697757,192.01,192.0,28.8439958]
[1736505903022,9.30107757,192.01,192.0,28.8439958]
[1736505903421,6.69697757,192.01,191.99,57.59154798]
[1736505904224,1.6458,192.03,191.94,57.59154798]
[1736505904517,6.69697757,192.0,191.94,57.59154798]
[1736505905218,9.30127757,192.0,191.93,10.4336309]
[1736505905425,6.69697757,191.98,191.93,3.73665333]
[1736505905819,9.30147757,191.98,191.94,2.6049]
[1736505906322,6.69697757,191.98,191.95,2.6049]
[1736505907225,6.69697757,191.98,191.94,2.605]
[1736505907226,9.30147757,191.98,191.94,2.605]
[1736505910927,6.69697757,191.98,191.95,2.6049]
[1736505911623,6.69697757,191.98,191.96,2.6048]
[1736505912323,6.69697757,191.98,191.92,6.69697757]
[1736505913224,6.69697757,191.98,191.95,2.6049]
[1736505913625,9.30147757,191.98,191.95,2.6049]
[1736505914126,6.69697757,191.98,191.95,2.6049]
[1736505915429,6.69697757,191.98,191.92,6.69697757]